fUSD/lending_fUSD_20250205
["ID","MTS","AMOUNT","RATE_DAILY","PERIOD"]
[351724981,1738766940864,-3289.9,0.00021917,120]
[351724982,1738766940914,-3289.9,0.00021917,120]
[351724983,1738766940965,-3289.9,0.00021917,120]
[351724984,1738766941014,-3289.9,0.00021917,120]
[351724985,1738766941064,-3289.9,0.00021917,120]
[351724986,1738766941115,-3289.9,0.00021917,120]
[351724987,1738766941166,-3289.9,0.00021917,120]
[351724988,1738766941221,-3289.9,0.00021917,120]
[351724989,1738766941275,-3289.9,0.00021917,120]
[351724990,1738766941639,-3289.91600974,0.00021917,120]
[351724991,1738766941697,-5893.94219934,0.00022,120]
[351724992,1738766941747,-1725.0,0.00022,120]
[351724993,1738766941796,-1000.0,0.00022,120]
[351724994,1738766941847,-285.17525843,0.00022,120]
[351724995,1738766941899,-524.9776087,0.00022,120]
[351724996,1738766941947,-637.29821962,0.00022,120]
[351724997,1738766941993,-487.0,0.00022,120]
[351724998,1738766942047,-5903.73,0.000225,120]
[351724999,1738766942095,-1312.88,0.00022739,120]
[351725000,1738766942143,-1312.88,0.00022739,120]
[351725001,1738766942191,-1312.88,0.00022739,120]
[351725002,1738766942239,-1312.88,0.00022739,120]
[351725003,1738766942291,-1312.88,0.00022739,120]
[351725004,1738766942344,-1312.88,0.00022739,120]
[351725005,1738766942396,-1312.88,0.00022739,120]
[351725006,1738766942447,-1312.88,0.00022739,120]
[351725007,1738766942501,-1312.88,0.00022739,120]
[351725008,1738766942566,-1312.88,0.00022739,120]
[351725009,1738766942626,-1312.88,0.00022739,120]
[351725010,1738766942680,-1312.88,0.00022739,120]
[351725011,1738766942733,-1312.88,0.00022739,120]
[351725012,1738766942784,-1312.88,0.00022739,120]
[351725013,1738766942834,-1312.88,0.00022739,120]
[351725014,1738766942885,-1312.88,0.00022739,120]
[351725015,1738766942935,-1312.88,0.00022739,120]
[351725016,1738766942986,-1312.88,0.00022739,120]
[351725017,1738766943043,-1312.88,0.00022739,120]
[351725018,1738766943104,-1312.88,0.00022739,120]
[351725019,1738766943163,-1312.88,0.00022739,120]
[351725020,1738766943228,-1312.88,0.00022739,120]
[351725021,1738766943291,-1312.88,0.00022739,120]
[351725022,1738766943352,-1312.95089654,0.00022739,120]
[351725023,1738766943414,-172.92,0.00023,120]
[351725024,1738766943475,-2192.0961375,0.00023,120]
[351725025,1738766943535,-25000.0,0.00023,120]
[351725026,1738766943590,-20000.0,0.00023,120]
[351725027,1738766943647,-1000.0,0.00023,120]
[351725028,1738766943706,-185.00000001,0.00023,120]
[351725029,1738766943761,-200.42,0.00023,120]
[351725030,1738766943813,-32475.0,0.00023,120]
[351725031,1738766943869,-202.54198459,0.00023,120]
[351725032,1738766943924,-5197.24187856,0.00023,120]
[351725033,1738766943978,-165768.05558693,0.00023,120]
[351725034,1738766944031,-72783.79061151,0.00023,120]
[351725035,1738766944083,-1333.0,0.00023233,120]
[351725036,1738766944134,-20000.0,0.0002328,120]
[351725037,1738766944184,-500.0,0.00023354,120]
[351725038,1738766944236,-2000.0,0.00023354,120]
[351725039,1738766944288,-642.339649,0.00023354,120]
[351725040,1738766944345,-200.0,0.00023354,120]
[351725041,1738766944402,-500.0,0.00024,120]
[351725042,1738766944454,-1000.0,0.00024,120]
[351725043,1738766944508,-25000.0,0.00024,120]
[351725044,1738766944564,-172.9705625,0.00024,120]
[351725045,1738766944622,-172.9705625,0.00024,120]
[351725046,1738766944681,-30000.0,0.0002466,120]
[351725047,1738766944735,-495.294492,0.00024854,120]
[351725048,1738766944788,-2000.0,0.00024854,120]
[351725049,1738766944844,-200.0,0.00024854,120]
[351725050,1738766944903,-176.44061415,0.00024899,120]
[351725051,1738766944959,-150.5,0.0002497,120]
[351725052,1738766945012,-284.89,0.0002497,120]
[351725053,1738766945066,-540.0,0.0002497,120]
[351725054,1738766945122,-540.0,0.0002497,120]
[351725055,1738766945177,-150.5,0.0002497,120]
[351725056,1738766945230,-36305.66657108,0.0002497,120]
[351725057,1738766945283,-156.72,0.0002497,120]
[351725058,1738766945334,-150.5,0.0002498,120]
[351725059,1738766945385,-150.5,0.0002498,120]
[351725060,1738766945437,-150.5,0.0002498,120]
[351725061,1738766945489,-540.0,0.0002498,120]
[351725062,1738766945541,-540.0,0.0002498,120]
[351725063,1738766945594,-540.0,0.0002498,120]
[351725064,1738766945644,-544.2,0.0002498,120]
[351725065,1738766945695,-150.5,0.0002498,120]
[351725066,1738766945746,-285.36,0.0002498,120]
[351725067,1738766945796,-210.38,0.0002498,120]
[351725068,1738766945846,-150.5,0.0002499,120]
[351725069,1738766945903,-150.5,0.0002499,120]
[351725070,1738766945957,-150.5,0.0002499,120]
[351725071,1738766946009,-150.5,0.0002499,120]
[351725072,1738766946063,-540.0,0.0002499,120]
[351725073,1738766946120,-540.0,0.0002499,120]
[351725074,1738766946171,-540.0,0.0002499,120]
[351725075,1738766946222,-540.0,0.0002499,120]
[351725076,1738766946273,-150.5,0.0002499,120]
[351725077,1738766946324,-150.5,0.0002499,120]
[351725078,1738766946376,-160.3,0.0002499,120]
[351725079,1738766946432,-500.0,0.00025,120]
[351725080,1738766946483,-200.0,0.00025,120]
[351725081,1738766946536,-10000.0,0.00025,120]
[351725082,1738766946588,-1944.37539788,0.00025,120]
[351725083,1738766946645,-26445.96906206,0.00025,120]
[351725084,1738766946894,-25000.0,0.00025,120]
[351725085,1738766946947,-1520.0,0.00025,120]
[351725086,1738766947000,-500.0,0.00025454,120]
[351725087,1738766947052,-500.0,0.00026,120]
[351725088,1738766947100,-59066.4744309,0.00026,120]
[351725089,1738766947152,-25000.0,0.00026,120]
[351725090,1738766947202,-14624.52942816,0.00026,120]
[351725091,1738766947252,-500.0,0.00026054,120]
[351725092,1738766947303,-916.627876,0.00026354,120]
[351725093,1738766947352,-200.0,0.00026354,120]
[351725094,1738766947402,-55000.0,0.000265,120]
[351725095,1738766947454,-500.0,0.00026654,120]
[351725096,1738766947505,-883.67706468,0.00026841,120]
[351725097,1738766947557,-409.24,0.00026986,120]
[351725098,1738766947611,-800.0,0.00026986,120]
[351725099,1738766947662,-800.0,0.00026986,120]
[351725100,1738766947712,-555.55555,0.00027,120]
[351725101,1738766947759,-555.55555,0.00027,120]
[351725102,1738766947805,-555.55555,0.00027,120]
[351725103,1738766947854,-555.55555,0.00027,120]
[351725104,1738766947905,-555.55555,0.00027,120]
[351725105,1738766947954,-555.55555,0.00027,120]
[351725106,1738766948003,-555.55555,0.00027,120]
[351725107,1738766948049,-555.55555,0.00027,120]
[351725108,1738766948096,-51727.63271243,0.00027,120]
[351725109,1738766948145,-500.0,0.00027,120]
[351725110,1738766948193,-25000.0,0.00027,120]
[351725111,1738766948243,-500.0,0.00027254,120]
[351725112,1738766948289,-872.44214485,0.0002736,120]
[351725113,1738766948337,-1351.25,0.00027397,120]
[351725114,1738766948385,-30000.0,0.000274,120]
[351725115,1738766948433,-500.0,0.00027854,120]
[351725116,1738766948480,-237.079767,0.00027854,120]
[351725117,1738766948528,-1000.0,0.00028,120]
[351725118,1738766948579,-25000.0,0.00028,120]
[351725119,1738766948625,-244.68951606,0.00028,120]
[351725120,1738766948672,-23471.93771125,0.00028,120]
[351725121,1738766948719,-3164.8,0.00028,120]
[351725122,1738766948766,-13653.72642682,0.00028297,120]
[351725123,1738766948813,-500.0,0.00028454,120]
[351725124,1738766948862,-1000.0,0.00029,120]
[351725125,1738766948912,-25000.0,0.00029,120]
[351725126,1738766948959,-5036.9917154,0.00029,120]
[351725127,1738766949005,-500.0,0.00029054,120]
[351725128,1738766949053,-1016.24655986,0.000292,120]
[351725129,1738766949098,-500.0,0.00029654,120]
[351725130,1738766949146,-164.423,0.0002989,120]
[351725131,1738766949194,-800.0,0.0003,120]
[351725132,1738766949242,-1047.16821795,0.0003,120]
[351725133,1738766949290,-1000.0,0.0003,120]
[351725134,1738766949337,-3827.94866479,0.0003,120]
[351725135,1738766949383,-200.0,0.0003,120]
[351725136,1738766949429,-22836.0,0.0003,120]
[351725137,1738766949474,-7000.0,0.0003,120]
[351725138,1738766949519,-200.0,0.0003,120]
[351725139,1738766949563,-458.0958652,0.0003,120]
[351725140,1738766949610,-5531.89037023,0.0003,120]
[351725141,1738766949658,-21632.48928525,0.0003,120]
[351725142,1738766949708,-25000.0,0.0003,120]
[351725143,1738766949759,-37803.26837944,0.0003,120]
[351725144,1738766949805,-151.0,0.0003,120]
[351725145,1738766949854,-192.98888889,0.0003,120]
[351725146,1738766949904,-40000.0,0.0003,120]
[351725147,1738766949954,-5523.662,0.0003,120]
[351725148,1738766950002,-30000.0,0.000301,120]
[351725159,1738767031521,-150.0,8.767e-05,2]
[351725160,1738767031532,-500.0,8.799e-05,2]
[351725161,1738767031543,-500.0,8.799e-05,2]
[351725162,1738767031553,-120.4,8.799e-05,2]
[351725163,1738767031667,-461.17,8.799e-05,2]
[351725164,1738767031678,-500.0,8.799e-05,2]
[351725165,1738767031689,-595.94,8.799e-05,2]
[351725166,1738767031701,-500.0,8.799e-05,2]
[351725167,1738767031712,-406.18,8.799e-05,2]
[351725168,1738767031724,-375.69,8.799e-05,2]
[351725169,1738767031736,-500.0,8.799e-05,2]
[351725170,1738767031747,-500.0,8.799e-05,2]
[351725171,1738767031758,-500.0,8.799e-05,2]
[351725172,1738767031769,-368.0,8.799e-05,2]
[351725173,1738767031780,-251.82,8.799e-05,2]
[351725174,1738767031791,-221.44,8.799e-05,2]
[351725175,1738767031802,-609.05,8.799e-05,2]
[351725176,1738767031813,-500.0,8.799e-05,2]
[351725177,1738767031825,-614.28199623,8.799e-05,2]
[351725178,1738767031840,-430.06,8.799e-05,2]
[351725179,1738767031854,-500.0,8.799e-05,2]
[351725180,1738767031866,-500.0,8.799e-05,2]
[351725181,1738767031881,-500.0,8.799e-05,2]
[351725182,1738767031894,-500.0,8.799e-05,2]
[351725184,1738767031907,-500.0,8.799e-05,2]
[351725185,1738767031919,-500.0,8.799e-05,2]
[351725186,1738767031932,-500.0,8.799e-05,2]
[351725188,1738767031943,-500.0,8.799e-05,2]
[351725190,1738767031956,-500.0,8.799e-05,2]
[351725192,1738767031969,-616.27,8.799e-05,2]
[351725194,1738767031980,-500.0,8.799e-05,2]
[351725197,1738767031993,-500.0,8.799e-05,2]
[351725199,1738767032005,-500.0,8.799e-05,2]
[351725201,1738767032017,-574.08,8.799e-05,2]
[351725203,1738767032028,-170.9,8.799e-05,2]
[351725205,1738767032040,-604.14,8.799e-05,2]
[351725208,1738767032054,-500.0,8.799e-05,2]
[351725210,1738767032065,-500.0,8.799e-05,2]
[351725212,1738767032078,-472.96,8.799e-05,2]
[351725214,1738767032089,-500.0,8.799e-05,2]
[351725216,1738767032100,-500.0,8.799e-05,2]
[351725219,1738767032113,-500.0,8.799e-05,2]
[351725221,1738767032125,-500.0,8.799e-05,2]
[351725223,1738767032137,-500.0,8.799e-05,2]
[351725225,1738767032149,-500.0,8.799e-05,2]
[351725228,1738767032161,-593.52,8.799e-05,2]
[351725230,1738767032173,-185.38,8.799e-05,2]
[351725232,1738767032184,-500.0,8.799e-05,2]
[351725234,1738767032196,-500.0,8.799e-05,2]
[351725236,1738767032209,-500.0,8.799e-05,2]
[351725239,1738767032222,-500.0,8.799e-05,2]
[351725241,1738767032233,-500.0,8.799e-05,2]
[351725243,1738767032245,-417.08,8.799e-05,2]
[351725245,1738767032255,-500.0,8.799e-05,2]
[351725247,1738767032267,-487.76,8.799e-05,2]
[351725249,1738767032279,-642.08,8.799e-05,2]
[351725252,1738767032290,-500.0,8.799e-05,2]
[351725254,1738767032302,-500.0,8.799e-05,2]
[351725256,1738767032313,-500.0,8.799e-05,2]
[351725258,1738767032324,-500.0,8.799e-05,2]
[351725260,1738767032335,-500.0,8.799e-05,2]
[351725263,1738767032348,-500.0,8.799e-05,2]
[351725265,1738767032360,-500.0,8.799e-05,2]
[351725267,1738767032371,-500.0,8.799e-05,2]
[351725269,1738767032381,-610.38248834,8.799e-05,2]
[351725272,1738767032391,-577.88556736,8.799e-05,2]
[351725273,1738767032403,-500.0,8.799e-05,2]
[351725275,1738767032413,-500.0,8.799e-05,2]
[351725277,1738767032423,-500.0,8.799e-05,2]
[351725279,1738767032433,-500.0,8.799e-05,2]
[351725281,1738767032443,-500.0,8.799e-05,2]
[351725283,1738767032452,-500.0,8.799e-05,2]
[351725285,1738767032461,-500.0,8.799e-05,2]
[351725287,1738767032471,-330.96,8.799e-05,2]
[351725289,1738767032480,-165.69,8.799e-05,2]
[351725291,1738767032489,-355.65014134,8.799e-05,2]
[351725293,1738767032499,-500.0,8.799e-05,2]
[351725295,1738767032508,-500.0,8.799e-05,2]
[351725298,1738767032518,-500.0,8.799e-05,2]
[351725299,1738767032527,-500.0,8.799e-05,2]
[351725302,1738767032538,-500.0,8.799e-05,2]
[351725304,1738767032548,-500.0,8.799e-05,2]
[351725306,1738767032557,-500.0,8.799e-05,2]
[351725308,1738767032567,-500.0,8.799e-05,2]
[351725310,1738767032576,-500.0,8.799e-05,2]
[351725312,1738767032585,-500.0,8.799e-05,2]
[351725314,1738767032595,-204.29,8.799e-05,2]
[351725316,1738767032604,-508.67,8.799e-05,2]
[351725318,1738767032614,-500.0,8.799e-05,2]
[351725319,1738767032623,-236.17,8.799e-05,2]
[351725339,1738767032955,-500.0,8.799e-05,2]
[351725340,1738767032980,-500.0,8.799e-05,2]
[351725341,1738767033000,-547.30159456,8.799e-05,2]
[351725342,1738767033010,-500.0,8.799e-05,2]
[351725343,1738767033020,-500.0,8.799e-05,2]
[351725344,1738767033031,-500.0,8.799e-05,2]
[351725345,1738767033046,-500.0,8.799e-05,2]
[351725346,1738767033057,-500.0,8.799e-05,2]
[351725347,1738767033067,-500.0,8.799e-05,2]
[351725348,1738767033078,-500.0,8.799e-05,2]
[351725349,1738767033089,-500.0,8.799e-05,2]
[351725350,1738767033099,-500.0,8.799e-05,2]
[351725351,1738767033110,-500.0,8.799e-05,2]
[351725352,1738767033120,-500.0,8.799e-05,2]
[351725353,1738767033130,-500.0,8.799e-05,2]
[351725354,1738767033141,-500.0,8.799e-05,2]
[351725355,1738767033157,-500.0,8.799e-05,2]
[351725356,1738767033168,-500.0,8.799e-05,2]
[351725357,1738767033178,-500.0,8.799e-05,2]
[351725358,1738767033188,-500.0,8.799e-05,2]
[351725359,1738767033199,-500.0,8.799e-05,2]
[351725360,1738767033209,-500.0,8.799e-05,2]
[351725361,1738767033219,-500.0,8.799e-05,2]
[351725362,1738767033230,-500.0,8.799e-05,2]
[351725363,1738767033240,-500.0,8.799e-05,2]
[351725364,1738767033251,-500.0,8.799e-05,2]
[351725365,1738767033262,-453.97,8.799e-05,2]
[351725366,1738767033272,-465.22596189,8.799e-05,2]
[351725367,1738767033283,-500.0,8.799e-05,2]
[351725368,1738767033294,-462.99,8.799e-05,2]
[351725369,1738767033306,-500.0,8.799e-05,2]
[351725370,1738767033316,-500.0,8.799e-05,2]
[351725371,1738767033326,-500.0,8.799e-05,2]
[351725372,1738767033337,-500.0,8.799e-05,2]
[351725373,1738767033346,-500.0,8.799e-05,2]
[351725374,1738767033356,-243.22,8.799e-05,2]
[351725375,1738767033366,-500.0,8.799e-05,2]
[351725376,1738767033376,-500.0,8.799e-05,2]
[351725377,1738767033386,-500.0,8.799e-05,2]
[351725378,1738767033396,-500.0,8.799e-05,2]
[351725379,1738767033411,-500.0,8.799e-05,2]
[351725380,1738767033421,-500.0,8.799e-05,2]
[351725381,1738767033431,-500.0,8.799e-05,2]
[351725382,1738767033441,-499.31,8.799e-05,2]
[351725383,1738767033451,-500.0,8.799e-05,2]
[351725384,1738767033461,-500.0,8.799e-05,2]
[351725385,1738767033471,-161.45,8.897e-05,2]
[351725386,1738767033482,-500.0,8.936e-05,2]
[351725387,1738767033492,-339.82,8.936e-05,2]
[351725388,1738767033503,-500.0,8.936e-05,2]
[351725389,1738767033513,-500.0,8.936e-05,2]
[351725390,1738767033523,-500.0,8.936e-05,2]
[351725391,1738767033533,-500.0,8.936e-05,2]
[351725392,1738767033543,-500.0,8.936e-05,2]
[351725393,1738767033553,-500.0,8.936e-05,2]
[351725394,1738767033563,-500.0,8.936e-05,2]
[351725395,1738767033573,-500.0,8.936e-05,2]
[351725396,1738767033583,-616.27,8.936e-05,2]
[351725397,1738767033593,-358.32,8.936e-05,2]
[351725398,1738767033603,-500.0,8.936e-05,2]
[351725399,1738767033612,-500.0,8.936e-05,2]
[351725400,1738767033623,-500.0,8.936e-05,2]
[351725401,1738767033633,-528.77,8.936e-05,2]
[351725402,1738767033642,-500.0,8.936e-05,2]
[351725403,1738767033655,-250.9,8.936e-05,2]
[351725404,1738767033665,-500.0,8.936e-05,2]
[351725405,1738767033675,-397.24,8.936e-05,2]
[351725406,1738767033685,-500.0,8.936e-05,2]
[351725407,1738767033695,-364.7659302,8.936e-05,2]
[351725408,1738767033705,-500.0,8.936e-05,2]
[351725409,1738767033715,-500.0,8.936e-05,2]
[351725410,1738767033725,-500.0,8.936e-05,2]
[351725411,1738767033735,-500.0,8.936e-05,2]
[351725412,1738767033744,-500.0,8.936e-05,2]
[351725413,1738767033754,-500.0,8.936e-05,2]
[351725414,1738767033764,-500.0,8.936e-05,2]
[351725415,1738767033774,-508.79,8.936e-05,2]
[351725416,1738767033783,-500.0,8.936e-05,2]
[351725417,1738767033793,-312.03,8.936e-05,2]
[351725418,1738767033803,-395.34,8.936e-05,2]
[351725419,1738767033812,-500.0,8.936e-05,2]
[351725420,1738767033822,-500.0,8.936e-05,2]
[351725421,1738767033832,-500.0,8.936e-05,2]
[351725422,1738767033842,-328.05510404,8.936e-05,2]
[351725423,1738767033852,-500.0,8.936e-05,2]
[351725424,1738767033862,-500.0,8.936e-05,2]
[351725425,1738767033872,-500.0,8.936e-05,2]
[351725426,1738767033883,-500.0,8.936e-05,2]
[351725427,1738767033894,-500.0,8.936e-05,2]
[351725428,1738767033908,-500.0,8.936e-05,2]
[351725429,1738767033919,-500.0,8.936e-05,2]
[351725430,1738767033929,-500.0,8.936e-05,2]
[351725431,1738767033939,-500.0,8.936e-05,2]
[351725432,1738767033949,-500.0,8.936e-05,2]
[351725433,1738767033958,-500.0,8.936e-05,2]
[351725434,1738767033968,-500.0,8.936e-05,2]
[351725435,1738767033978,-500.0,8.936e-05,2]
[351725436,1738767033988,-500.0,8.936e-05,2]
[351725437,1738767033998,-500.0,8.936e-05,2]
[351725438,1738767034008,-500.0,8.936e-05,2]
[351725439,1738767034018,-500.0,8.936e-05,2]
[351725440,1738767034027,-500.0,8.936e-05,2]
[351725441,1738767034039,-500.0,8.936e-05,2]
[351725442,1738767034049,-500.0,8.936e-05,2]
[351725443,1738767034059,-500.0,8.936e-05,2]
[351725444,1738767034069,-1000.0,8.943e-05,2]
[351725445,1738767034079,-1015.9336,8.973e-05,2]
[351725446,1738767034089,-500.0,9.073e-05,2]
[351725447,1738767034100,-231.62,9.073e-05,2]
[351725448,1738767034110,-500.0,9.073e-05,2]
[351725449,1738767034120,-500.0,9.073e-05,2]
[351725450,1738767034130,-192.47,9.073e-05,2]
[351725451,1738767034140,-227.8156742,9.073e-05,2]
[351725452,1738767034155,-500.0,9.073e-05,2]
[351725453,1738767034165,-500.0,9.073e-05,2]
[351725454,1738767034175,-616.27,9.073e-05,2]
[351725455,1738767034184,-500.0,9.073e-05,2]
[351725456,1738767034194,-500.0,9.073e-05,2]
[351725457,1738767034204,-500.0,9.073e-05,2]
[351725458,1738767034213,-500.0,9.073e-05,2]
[351725459,1738767034223,-500.0,9.073e-05,2]
[351725460,1738767034232,-500.0,9.073e-05,2]
[351725461,1738767034242,-500.0,9.073e-05,2]
[351725462,1738767034252,-161.53,9.073e-05,2]
[351725463,1738767034261,-500.0,9.073e-05,2]
[351725464,1738767034271,-500.0,9.073e-05,2]
[351725465,1738767034281,-500.0,9.073e-05,2]
[351725466,1738767034291,-500.0,9.073e-05,2]
[351725467,1738767034300,-500.0,9.073e-05,2]
[351725468,1738767034310,-500.0,9.073e-05,2]
[351725469,1738767034320,-500.0,9.073e-05,2]
[351725470,1738767034329,-500.0,9.073e-05,2]
[351725471,1738767034340,-500.0,9.073e-05,2]
[351725472,1738767034350,-500.0,9.073e-05,2]
[351725473,1738767034360,-500.0,9.073e-05,2]
[351725474,1738767034370,-500.0,9.073e-05,2]
[351725475,1738767034380,-500.0,9.073e-05,2]
[351725476,1738767034390,-500.0,9.073e-05,2]
[351725477,1738767034401,-500.0,9.073e-05,2]
[351725478,1738767034414,-500.0,9.073e-05,2]
[351725479,1738767034424,-500.0,9.073e-05,2]
[351725480,1738767034434,-500.0,9.073e-05,2]
[351725481,1738767034444,-500.0,9.073e-05,2]
[351725482,1738767034453,-500.0,9.073e-05,2]
[351725483,1738767034463,-500.0,9.073e-05,2]
[351725484,1738767034472,-500.0,9.073e-05,2]
[351725485,1738767034482,-500.0,9.073e-05,2]
[351725486,1738767034491,-500.0,9.073e-05,2]
[351725487,1738767034501,-624.87,9.073e-05,2]
[351725488,1738767034510,-539.06,9.073e-05,2]
[351725489,1738767034520,-500.0,9.073e-05,2]
[351725490,1738767034529,-500.0,9.21e-05,2]
[351725491,1738767034539,-500.0,9.21e-05,2]
[351725492,1738767034548,-500.0,9.21e-05,2]
[351725493,1738767034558,-500.0,9.21e-05,2]
[351725494,1738767034567,-616.27,9.21e-05,2]
[351725495,1738767034577,-500.0,9.21e-05,2]
[351725496,1738767034586,-500.0,9.21e-05,2]
[351725497,1738767034596,-500.0,9.21e-05,2]
[351725498,1738767034606,-500.0,9.21e-05,2]
[351725499,1738767034615,-500.0,9.21e-05,2]
[351725500,1738767034624,-500.0,9.21e-05,2]
[351725501,1738767034634,-500.0,9.21e-05,2]
[351725502,1738767034644,-500.0,9.21e-05,2]
[351725503,1738767034656,-500.0,9.21e-05,2]
[351725504,1738767034666,-500.0,9.21e-05,2]
[351725505,1738767034675,-493.03,9.21e-05,2]
[351725506,1738767034686,-500.0,9.21e-05,2]
[351725507,1738767034696,-500.0,9.21e-05,2]
[351725508,1738767034705,-500.0,9.21e-05,2]
[351725509,1738767034715,-500.0,9.21e-05,2]
[351725510,1738767034724,-500.0,9.21e-05,2]
[351725511,1738767034734,-500.0,9.21e-05,2]
[351725512,1738767034743,-500.0,9.21e-05,2]
[351725513,1738767034753,-500.0,9.21e-05,2]
[351725514,1738767034763,-500.0,9.21e-05,2]
[351725515,1738767034773,-500.0,9.21e-05,2]
[351725516,1738767034783,-500.0,9.21e-05,2]
[351725517,1738767034793,-500.0,9.21e-05,2]
[351725518,1738767034802,-500.0,9.21e-05,2]
[351725519,1738767034812,-500.0,9.21e-05,2]
[351725520,1738767034822,-500.0,9.21e-05,2]
[351725521,1738767034832,-500.0,9.21e-05,2]
[351725522,1738767034841,-215.65,9.21e-05,2]
[351725523,1738767034850,-500.0,9.21e-05,2]
[351725524,1738767034860,-500.0,9.21e-05,2]
[351725525,1738767034870,-500.0,9.21e-05,2]
[351725526,1738767034881,-474.99,9.21e-05,2]
[351725527,1738767034892,-500.0,9.347e-05,2]
[351725528,1738767034905,-400.27852096,9.347e-05,2]
[351725529,1738767034915,-500.0,9.347e-05,2]
[351725530,1738767034927,-495.09835633,9.347e-05,2]
[351725531,1738767034936,-616.27,9.347e-05,2]
[351725532,1738767034946,-500.0,9.347e-05,2]
[351725533,1738767034956,-500.0,9.347e-05,2]
[351725534,1738767034966,-500.0,9.347e-05,2]
[351725535,1738767034976,-500.0,9.347e-05,2]
[351725536,1738767034986,-228.56342616,9.347e-05,2]
[351725537,1738767034995,-500.0,9.347e-05,2]
[351725538,1738767035005,-500.0,9.347e-05,2]
[351725539,1738767035015,-500.0,9.347e-05,2]
[351725540,1738767035025,-500.0,9.347e-05,2]
[351725541,1738767035035,-500.0,9.347e-05,2]
[351725542,1738767035045,-500.0,9.347e-05,2]
[351725543,1738767035055,-598.7,9.347e-05,2]
[351725544,1738767035064,-500.0,9.347e-05,2]
[351725545,1738767035074,-207.13,9.347e-05,2]
[351725546,1738767035084,-500.0,9.347e-05,2]
[351725547,1738767035094,-500.0,9.347e-05,2]
[351725548,1738767035103,-500.0,9.347e-05,2]
[351725549,1738767035114,-500.0,9.347e-05,2]
[351725550,1738767035124,-500.0,9.347e-05,2]
[351725551,1738767035134,-500.0,9.347e-05,2]
[351725552,1738767035144,-500.0,9.347e-05,2]
[351725553,1738767035156,-500.0,9.347e-05,2]
[351725554,1738767035167,-644.59,9.347e-05,2]
[351725555,1738767035177,-500.0,9.347e-05,2]
[351725556,1738767035187,-500.0,9.347e-05,2]
[351725557,1738767035197,-500.0,9.347e-05,2]
[351725558,1738767035207,-500.0,9.347e-05,2]
[351725559,1738767035217,-564.6,9.347e-05,2]
[351725560,1738767035227,-500.0,9.347e-05,2]
[351725561,1738767035237,-193.12,9.452e-05,2]
[351725562,1738767035247,-500.0,9.484e-05,2]
[351725563,1738767035257,-500.0,9.484e-05,2]
[351725564,1738767035267,-616.27,9.484e-05,2]
[351725565,1738767035277,-500.0,9.484e-05,2]
[351725566,1738767035287,-500.0,9.484e-05,2]
[351725567,1738767035297,-500.0,9.484e-05,2]
[351725568,1738767035306,-500.0,9.484e-05,2]
[351725569,1738767035316,-500.0,9.484e-05,2]
[351725570,1738767035326,-500.0,9.484e-05,2]
[351725571,1738767035336,-500.0,9.484e-05,2]
[351725572,1738767035346,-500.0,9.484e-05,2]
[351725573,1738767035356,-500.0,9.484e-05,2]
[351725574,1738767035366,-500.0,9.484e-05,2]
[351725575,1738767035376,-500.0,9.484e-05,2]
[351725576,1738767035387,-500.0,9.484e-05,2]
[351725577,1738767035397,-500.0,9.484e-05,2]
[351725578,1738767035414,-500.0,9.484e-05,2]
[351725579,1738767035424,-500.0,9.484e-05,2]
[351725580,1738767035435,-500.0,9.484e-05,2]